fUST/lending_fUST_20241205
["ID","MTS","AMOUNT","RATE_DAILY","PERIOD"]
[344394738,1733409040246,-500.0,0.00030506,7]
[344394740,1733409040256,-500.0,0.00030506,7]
[344394741,1733409040265,-500.0,0.00030506,7]
[344394742,1733409040274,-500.0,0.00030506,7]
[344394743,1733409040284,-500.0,0.00030506,7]
[344394744,1733409040293,-500.0,0.00030506,7]
[344394745,1733409040303,-500.0,0.00030506,7]
[344394746,1733409040313,-500.0,0.00030506,7]
[344394747,1733409040324,-500.0,0.00030506,7]
[344394748,1733409040336,-510.1760704,0.00030506,7]
[344394749,1733409040346,-500.0,0.00030506,2]
[344394750,1733409040356,-555.52133593,0.00030506,7]
[344394751,1733409040365,-531.87049841,0.00030506,7]
[344394752,1733409040375,-576.16821352,0.00030506,7]
[344394753,1733409040385,-500.0,0.00030506,7]
[344394754,1733409040394,-514.69227699,0.00030506,7]
[344394755,1733409040404,-500.79553745,0.00030506,7]
[344394756,1733409040416,-500.0,0.00030506,7]
[344394757,1733409040427,-28008.44130707,0.00030507,2]
[344394758,1733409040437,-666.0,0.00030507,2]
[344394759,1733409040447,-2694.30842519,0.00030507,2]
[344394760,1733409040458,-155.31992549,0.00030507,2]
[344394761,1733409040468,-1814.35409552,0.00030507,2]
[344394762,1733409040479,-500.0,0.00030599,7]
[344394763,1733409040488,-500.0,0.00030599,7]
[344394764,1733409040499,-216.0,0.000306,30]
[344394765,1733409040508,-500.0,0.00030601,7]
[344394766,1733409040518,-500.0,0.00030601,7]
[344394767,1733409040527,-500.0,0.00030604,7]
[344394768,1733409040537,-150.01,0.00030605,2]
[344394769,1733409040547,-2087.63648509,0.00030605,2]
[344394770,1733409040557,-500.0,0.00030605,7]
[344394771,1733409040566,-1000.0,0.00030605,120]
[344394772,1733409040579,-500.0,0.00030605,7]
[344394773,1733409040589,-500.0,0.00030605,2]
[344394774,1733409040599,-252.66978334,0.00030605,2]
[344394775,1733409040608,-295.7170146,0.00030605,2]
[344394776,1733409040618,-243.29559998,0.00030605,2]
[344394777,1733409040628,-232.08425773,0.00030605,2]
[344394778,1733409040638,-509.66346961,0.00030606,7]
[344394779,1733409040648,-500.0,0.00030606,7]
[344394780,1733409040657,-429.80853762,0.00030606,7]
[344394781,1733409040667,-500.0,0.00030606,7]
[344394782,1733409040677,-500.0,0.00030606,7]
[344394783,1733409040687,-500.0,0.00030606,7]
[344394784,1733409040697,-500.0,0.00030606,7]
[344394785,1733409040706,-500.0,0.00030606,7]
[344394786,1733409040716,-500.0,0.00030606,7]
[344394787,1733409040726,-500.0,0.00030606,7]
[344394788,1733409040736,-500.0,0.00030606,7]
[344394789,1733409040746,-500.0,0.00030606,7]
[344394790,1733409040756,-500.0,0.00030606,7]
[344394791,1733409040766,-500.0,0.00030606,7]
[344394792,1733409040776,-500.0,0.00030606,7]
[344394793,1733409040785,-500.0,0.00030606,7]
[344394795,1733409040795,-500.0,0.00030606,7]
[344394797,1733409040805,-470.00540086,0.00030606,7]
[344394799,1733409040815,-500.0,0.00030606,7]
[344394801,1733409040826,-500.0,0.00030606,7]
[344394803,1733409040835,-500.0,0.00030606,7]
[344394805,1733409040845,-258.87214258,0.00030606,7]
[344394807,1733409040854,-500.0,0.00030606,7]
[344394809,1733409040864,-500.0,0.00030606,7]
[344394811,1733409040873,-500.0,0.00030606,7]
[344394813,1733409040883,-500.0,0.00030606,7]
[344394815,1733409040893,-248.90530956,0.00030606,7]
[344394817,1733409040903,-500.0,0.00030606,7]
[344394819,1733409040912,-500.0,0.00030606,7]
[344394821,1733409040922,-500.0,0.00030606,7]
[344394823,1733409040931,-500.0,0.00030606,7]
[344394825,1733409040941,-500.0,0.00030606,7]
[344394827,1733409040950,-500.0,0.00030606,7]
[344394829,1733409040960,-500.0,0.00030606,7]
[344394831,1733409040969,-485.13691463,0.00030606,7]
[344394833,1733409040979,-500.0,0.00030606,7]
[344394835,1733409040988,-500.0,0.00030606,7]
[344394837,1733409040998,-500.0,0.00030606,7]
[344394839,1733409041007,-500.0,0.00030606,7]
[344394841,1733409041016,-500.0,0.00030606,7]
[344394843,1733409041026,-500.0,0.00030606,7]
[344394845,1733409041035,-500.0,0.00030606,7]
[344394847,1733409041045,-500.0,0.00030606,7]
[344394849,1733409041054,-138.26323334,0.00030606,7]
[344394856,1733409041110,-361.73676666,0.00030606,7]
[344394858,1733409041119,-500.0,0.00030606,7]
[344394860,1733409041128,-500.0,0.00030606,7]
[344394862,1733409041137,-500.0,0.00030606,7]
[344394864,1733409041146,-500.0,0.00030606,7]
[344394867,1733409041156,-500.0,0.00030606,7]
[344394869,1733409041165,-500.0,0.00030606,7]
[344394871,1733409041174,-500.0,0.00030606,7]
[344394873,1733409041182,-599.45952978,0.00030606,7]
[344394875,1733409041191,-22090.6216113,0.00030607,2]
[344394877,1733409041203,-427.63664462,0.00030607,2]
[344394889,1733409041304,-36.86176571,0.00030607,2]
[344395106,1733409043714,-1391.75765672,0.00030605,2]
[344395108,1733409043724,-6427.84234328,0.00030607,2]
[344395110,1733409043735,-442.71028171,0.00030607,2]
[344395113,1733409043746,-15449.37106591,0.00030607,2]
[344395115,1733409043755,-151.685753,0.00030607,7]
[344395116,1733409043764,-151.0,0.00030607,7]
[344395119,1733409043774,-151.0,0.00030607,7]
[344395120,1733409043783,-151.0,0.00030607,7]
[344395122,1733409043792,-151.0,0.00030607,7]
[344395124,1733409043801,-151.0,0.00030607,7]
[344395126,1733409043811,-151.0,0.00030607,7]
[344395138,1733409043908,-151.0,0.00030607,7]
[344395140,1733409043917,-151.0,0.00030607,7]
[344395142,1733409043927,-151.0,0.00030607,7]
[344395144,1733409043936,-151.0,0.00030607,7]
[344395146,1733409043945,-163.907091,0.00030607,7]
[344395148,1733409043954,-151.0,0.00030607,7]
[344395150,1733409043963,-151.0,0.00030607,7]
[344395152,1733409043972,-151.0,0.00030607,7]
[344395154,1733409043981,-151.0,0.00030607,7]
[344395156,1733409043990,-151.0,0.00030607,7]
[344395158,1733409043999,-151.0,0.00030607,7]
[344395159,1733409044009,-151.0,0.00030607,7]
[344395161,1733409044018,-151.0,0.00030607,7]
[344395163,1733409044027,-151.0,0.00030607,7]
[344395165,1733409044037,-151.0,0.00030607,7]
[344395168,1733409044046,-151.0,0.00030607,7]
[344395169,1733409044056,-151.0,0.00030607,7]
[344395171,1733409044065,-151.0,0.00030607,7]
[344395173,1733409044076,-155.834511,0.00030607,7]
[344395175,1733409044086,-151.0,0.00030607,7]
[344395177,1733409044096,-151.0,0.00030607,7]
[344395179,1733409044105,-151.0,0.00030607,7]
[344395181,1733409044115,-151.0,0.00030607,7]
[344395183,1733409044124,-151.0,0.00030607,7]
[344395185,1733409044134,-151.0,0.00030607,7]
[344395187,1733409044143,-151.0,0.00030607,7]
[344395189,1733409044153,-151.0,0.00030607,7]
[344395191,1733409044162,-151.0,0.00030607,7]
[344395193,1733409044171,-151.0,0.00030607,7]
[344395195,1733409044181,-151.0,0.00030607,7]
[344395197,1733409044191,-151.0,0.00030607,7]
[344395199,1733409044201,-151.0,0.00030607,7]
[344395201,1733409044210,-151.0,0.00030607,7]
[344395203,1733409044219,-151.0,0.00030607,7]
[344395205,1733409044228,-151.0,0.00030607,7]
[344395207,1733409044238,-151.0,0.00030607,7]
[344395208,1733409044247,-151.0,0.00030607,7]
[344395210,1733409044257,-153.231163,0.00030607,7]
[344395212,1733409044266,-151.0,0.00030607,7]
[344395214,1733409044275,-151.0,0.00030607,7]
[344395216,1733409044285,-151.0,0.00030607,7]
[344395218,1733409044295,-151.0,0.00030607,7]
[344395221,1733409044304,-151.0,0.00030607,7]
[344395223,1733409044314,-173.265052,0.00030607,7]
[344395225,1733409044323,-151.0,0.00030607,7]
[344395226,1733409044339,-151.0,0.00030607,7]
[344395228,1733409044349,-151.0,0.00030607,7]
[344395230,1733409044358,-151.0,0.00030607,7]
[344395232,1733409044368,-151.0,0.00030607,7]
[344395234,1733409044377,-151.0,0.00030607,7]
[344395236,1733409044387,-151.0,0.00030607,7]
[344395238,1733409044397,-151.0,0.00030607,7]
[344395240,1733409044407,-151.0,0.00030607,7]
[344395242,1733409044419,-151.0,0.00030607,7]
[344395244,1733409044428,-20.37415753,0.00030607,7]
[344395246,1733409044442,-130.62584247,0.00030607,7]
[344395248,1733409044452,-151.0,0.00030607,7]
[344395250,1733409044463,-151.0,0.00030607,7]
[344395252,1733409044472,-151.0,0.00030607,7]
[344395254,1733409044482,-151.0,0.00030607,7]
[344395256,1733409044494,-151.0,0.00030607,7]
[344395258,1733409044503,-228.360562,0.00030607,7]
[344395260,1733409044512,-196.51628,0.00030607,7]
[344395262,1733409044522,-196.51628,0.00030607,7]
[344395264,1733409044531,-196.51628,0.00030607,7]
[344395266,1733409044539,-196.51628,0.00030607,7]
[344395268,1733409044549,-196.51628,0.00030607,7]
[344395270,1733409044559,-196.51628,0.00030607,7]
[344395272,1733409044570,-196.51628,0.00030607,7]
[344395274,1733409044583,-196.51628,0.00030607,7]
[344395276,1733409044592,-196.51628,0.00030607,7]
[344395278,1733409044601,-196.51628,0.00030607,7]
[344395280,1733409044611,-196.51628,0.00030607,7]
[344395282,1733409044621,-196.51628,0.00030607,7]
[344395284,1733409044630,-196.51628,0.00030607,7]
[344395286,1733409044640,-196.51628,0.00030607,7]
[344395288,1733409044649,-196.51628,0.00030607,7]
[344395290,1733409044659,-196.51628,0.00030607,7]
[344395292,1733409044669,-196.51628,0.00030607,7]
[344395294,1733409044679,-196.51628,0.00030607,7]
[344395296,1733409044689,-196.51628,0.00030607,7]
[344395298,1733409044699,-196.51628696,0.00030607,7]
[344395300,1733409044708,-177.472717,0.00030607,7]
[344395302,1733409044717,-177.472717,0.00030607,7]
[344395304,1733409044727,-177.472717,0.00030607,7]
[344395306,1733409044736,-177.472717,0.00030607,7]
[344395307,1733409044745,-767.058957,0.00030607,7]
[344395309,1733409044754,-177.472717,0.00030607,7]
[344395312,1733409044764,-767.058957,0.00030607,7]
[344395313,1733409044773,-177.472717,0.00030607,7]
[344395315,1733409044782,-767.058957,0.00030607,7]
[344395317,1733409044791,-177.472717,0.00030607,7]
[344395319,1733409044801,-767.058957,0.00030607,7]
[344395321,1733409044810,-177.472717,0.00030607,7]
[344395323,1733409044820,-767.058957,0.00030607,7]
[344395325,1733409044832,-177.472717,0.00030607,7]
[344395327,1733409044843,-767.058957,0.00030607,7]
[344395329,1733409044852,-177.472717,0.00030607,7]
[344395331,1733409044862,-767.058957,0.00030607,7]
[344395333,1733409044871,-177.472717,0.00030607,7]
[344395335,1733409044881,-767.058957,0.00030607,7]
[344395338,1733409044890,-767.058957,0.00030607,7]
[344395339,1733409044899,-177.472717,0.00030607,7]
[344395341,1733409044909,-177.472717,0.00030607,7]
[344395343,1733409044918,-177.472717,0.00030607,7]
[344395345,1733409044928,-767.058957,0.00030607,7]
[344395347,1733409044937,-177.472717,0.00030607,7]
[344395350,1733409044947,-767.058957,0.00030607,7]
[344395351,1733409044956,-177.472717,0.00030607,7]
[344395353,1733409044965,-767.058957,0.00030607,7]
[344395355,1733409044975,-177.472717,0.00030607,7]
[344395357,1733409044985,-767.058957,0.00030607,7]
[344395359,1733409044995,-177.472717,0.00030607,7]
[344395361,1733409045004,-767.058957,0.00030607,7]
[344395363,1733409045013,-177.472717,0.00030607,7]
[344395366,1733409045023,-767.058957,0.00030607,7]
[344395368,1733409045032,-767.058957,0.00030607,7]
[344395369,1733409045041,-177.472721,0.00030607,7]
[344395371,1733409045051,-767.058957,0.00030607,7]
[344395373,1733409045060,-767.058957,0.00030607,7]
[344395376,1733409045069,-767.058957,0.00030607,7]
[344395378,1733409045082,-767.058962,0.00030607,7]
[344395380,1733409045092,-166.770808,0.00030607,7]
[344395381,1733409045101,-166.770808,0.00030607,7]
[344395382,1733409045111,-166.770808,0.00030607,7]
[344395383,1733409045121,-166.770808,0.00030607,7]
[344395384,1733409045131,-31.72120029,0.00030607,7]
[344395385,1733409045145,-135.04960771,0.00030607,7]
[344395386,1733409045155,-166.770808,0.00030607,7]
[344395387,1733409045164,-166.770808,0.00030607,7]
[344395388,1733409045174,-166.770808,0.00030607,7]
[344395389,1733409045184,-166.770808,0.00030607,7]
[344395390,1733409045194,-166.770808,0.00030607,7]
[344395391,1733409045203,-166.770808,0.00030607,7]
[344395392,1733409045213,-166.770808,0.00030607,7]
[344395393,1733409045223,-166.770808,0.00030607,7]
[344395394,1733409045232,-166.770808,0.00030607,7]
[344395395,1733409045243,-166.770808,0.00030607,7]
[344395396,1733409045252,-166.770808,0.00030607,7]
[344395397,1733409045261,-166.770808,0.00030607,7]
[344395398,1733409045272,-166.770808,0.00030607,7]
[344395399,1733409045282,-166.770808,0.00030607,7]
[344395400,1733409045291,-166.7708,0.00030607,7]
[344395401,1733409045301,-151.0,0.00030607,7]
[344395402,1733409045312,-203.310534,0.00030607,7]
[344395403,1733409045322,-156.088146,0.00030607,7]
[344395404,1733409045336,-156.088146,0.00030607,7]
[344395405,1733409045346,-156.088146,0.00030607,7]
[344395406,1733409045356,-156.088146,0.00030607,7]
[344395407,1733409045366,-156.088146,0.00030607,7]
[344395408,1733409045375,-156.088146,0.00030607,7]
[344395409,1733409045385,-156.088146,0.00030607,7]
[344395410,1733409045395,-156.088146,0.00030607,7]
[344395411,1733409045404,-156.088146,0.00030607,7]
[344395413,1733409045414,-156.088146,0.00030607,7]
[344395415,1733409045428,-156.088146,0.00030607,7]
[344395417,1733409045437,-156.088146,0.00030607,7]
[344395419,1733409045446,-156.088146,0.00030607,7]
[344395421,1733409045456,-156.088146,0.00030607,7]
[344395423,1733409045466,-156.088146,0.00030607,7]
[344395425,1733409045476,-156.088146,0.00030607,7]
[344395427,1733409045486,-156.088146,0.00030607,7]
[344395429,1733409045496,-156.088146,0.00030607,7]
[344395431,1733409045505,-156.088146,0.00030607,7]
[344395433,1733409045514,-156.088146,0.00030607,7]
[344395435,1733409045523,-154.657626,0.00030607,7]
[344395440,1733409045533,-154.657626,0.00030607,7]
[344395444,1733409045543,-154.657626,0.00030607,7]
[344395449,1733409045552,-154.657626,0.00030607,7]
[344395454,1733409045562,-154.657626,0.00030607,7]
[344395459,1733409045571,-154.657626,0.00030607,7]
[344395464,1733409045583,-154.657626,0.00030607,7]
[344395469,1733409045593,-154.657626,0.00030607,7]
[344395473,1733409045602,-154.657626,0.00030607,7]
[344395477,1733409045612,-154.657626,0.00030607,7]
[344395479,1733409045622,-154.657626,0.00030607,7]
[344395483,1733409045634,-154.657626,0.00030607,7]
[344395486,1733409045643,-154.657626,0.00030607,7]
[344395488,1733409045652,-154.657626,0.00030607,7]
[344395492,1733409045662,-154.657626,0.00030607,7]
[344395494,1733409045673,-154.657626,0.00030607,7]
[344395496,1733409045682,-154.657626,0.00030607,7]
[344395498,1733409045692,-154.657626,0.00030607,7]
[344395500,1733409045702,-154.657626,0.00030607,7]
[344395502,1733409045711,-154.657629,0.00030607,7]
[344395504,1733409045721,-151.0,0.00030607,7]
[344395506,1733409045730,-151.0,0.00030607,7]
[344395508,1733409045739,-151.0,0.00030607,7]
[344395510,1733409045749,-151.0,0.00030607,7]
[344395511,1733409045758,-151.0,0.00030607,7]
[344395513,1733409045768,-151.0,0.00030607,7]
[344395515,1733409045778,-151.0,0.00030607,7]
[344395517,1733409045788,-151.0,0.00030607,7]
[344395519,1733409045798,-151.0,0.00030607,7]
[344395521,1733409045807,-151.0,0.00030607,7]
[344395523,1733409045817,-217.101304,0.00030607,7]
[344395525,1733409045829,-151.0,0.00030607,7]
[344395527,1733409045838,-151.0,0.00030607,7]
[344395529,1733409045848,-151.0,0.00030607,7]
[344395532,1733409045858,-151.0,0.00030607,7]
[344395533,1733409045867,-151.0,0.00030607,7]
[344395535,1733409045877,-151.0,0.00030607,7]
[344395538,1733409045887,-151.0,0.00030607,7]
[344395539,1733409045896,-151.0,0.00030607,7]
[344395541,1733409045906,-151.0,0.00030607,7]
[344395543,1733409045916,-520.177936,0.00030607,7]
[344395545,1733409045926,-154.141837,0.00030607,7]
[344395547,1733409045935,-520.177936,0.00030607,7]
[344395549,1733409045945,-520.177936,0.00030607,7]
[344395551,1733409045954,-520.177936,0.00030607,7]
[344395553,1733409045963,-520.177936,0.00030607,7]
[344395555,1733409045972,-520.177936,0.00030607,7]
[344395557,1733409045982,-520.177936,0.00030607,7]
[344395559,1733409045991,-520.177936,0.00030607,7]
[344395561,1733409046000,-520.177936,0.00030607,7]
[344395563,1733409046010,-520.177936,0.00030607,7]
[344395565,1733409046019,-520.177936,0.00030607,7]
[344395567,1733409046028,-520.177936,0.00030607,7]
[344395569,1733409046038,-520.177936,0.00030607,7]
[344395571,1733409046047,-520.177936,0.00030607,7]
[344395573,1733409046056,-520.177936,0.00030607,7]
[344395575,1733409046066,-520.177936,0.00030607,7]
[344395577,1733409046075,-520.177936,0.00030607,7]
[344395579,1733409046087,-520.177936,0.00030607,7]
[344395581,1733409046096,-520.177936,0.00030607,7]
[344395583,1733409046105,-520.177946,0.00030607,7]
[344395585,1733409046115,-155.01241804,0.00030607,120]
[344395587,1733409046124,-1333.17085633,0.00030607,10]
[344395589,1733409046136,-35853.89963433,0.00030607,10]
[344395591,1733409046147,-44800.00055437,0.00030607,10]
[344395596,1733409046181,-4866.45141415,0.00030607,10]
[344395598,1733409046196,-500.0,0.00030136,7]
[344395600,1733409046206,-8883.02081728,0.00030607,10]
[344395741,1733409933172,-446.39621187,0.000282,13]
[344395742,1733410204284,8742.18132956,0.00026,2]
[344395743,1733410204307,3118.44182996,0.00026,2]
[344395744,1733410204328,3138.19506828,0.00026,2]
[344395856,1733410235780,-3240.75454817,0.00024953,11]
[344395858,1733410235790,-190.38315364,0.000255,2]
[344395860,1733410235804,-3946.90000001,0.000255,2]
[344396011,1733410240411,-15863.89861855,0.000252,2]
[344396012,1733410240421,-6.60378813,0.000282,13]
[344396013,1733410240430,-157.755,0.00029,2]
[344396014,1733410240439,-151.0,0.00029652,2]
[344396015,1733410240449,-453.0,0.000297,14]
[344396016,1733410240459,-1892.46965567,0.0003,120]
[344396017,1733410240468,-154.34,0.0003,31]
[344396018,1733410240478,-154.34,0.0003,31]
[344396019,1733410240487,-154.34,0.0003,31]
[344396020,1733410240496,-400.0,0.00030135,2]
[344396021,1733410240506,-178.37044499,0.00030136,25]
[344396022,1733410240516,-268.0,0.00030136,2]
[344396023,1733410240525,-500.0,0.00030136,7]
[344396024,1733410240535,-500.0,0.00030136,7]
[344396025,1733410240544,-501.94563409,0.00030136,7]
[344396026,1733410240553,-500.0,0.00030136,7]
[344396027,1733410240562,-633.05,0.00030136,7]
[344396028,1733410240571,-504.63130235,0.00030136,7]
[344396029,1733410240580,-501.45459868,0.00030136,7]
[344396030,1733410240589,-537.24803239,0.00030136,7]
[344396031,1733410240598,-501.34381077,0.00030136,7]
[344396032,1733410240608,-502.77942144,0.00030136,7]
[344396033,1733410240617,-501.14713592,0.00030136,7]
[344396034,1733410240626,-502.47613665,0.00030136,7]
[344396035,1733410240635,-503.42047821,0.00030136,7]
[344396037,1733410240644,-501.56694267,0.00030136,7]
[344396038,1733410240654,-503.2896301,0.00030136,7]
[344396039,1733410240664,-500.5188417,0.00030136,7]
[344396040,1733410240673,-502.86441556,0.00030136,7]
[344396041,1733410240682,-576.93,0.00030136,7]
[344396042,1733410240692,-500.0,0.00030136,7]
[344396043,1733410240701,-500.0,0.00030136,7]
[344396044,1733410240713,-500.0,0.00030136,7]
[344396045,1733410240723,-500.0,0.00030136,7]
[344396046,1733410240733,-616.97795439,0.00030136,7]
[344396047,1733410240742,-500.0,0.00030136,7]
[344396048,1733410240751,-177.73159316,0.00030136,7]
[344396049,1733410240761,-573.87828204,0.00030136,7]
[344396050,1733410240770,-501.73065078,0.00030136,7]
[344396051,1733410240779,-500.0,0.00030136,7]
[344396052,1733410240791,-500.0,0.00030136,7]
[344396053,1733410240804,-500.0,0.00030136,7]
[344396054,1733410240813,-500.0,0.00030136,7]
[344396055,1733410240823,-500.0,0.00030136,7]
[344396056,1733410240834,-604.66696486,0.00030136,7]
[344396057,1733410240843,-500.0,0.00030136,7]
[344396058,1733410240853,-500.0,0.00030136,7]
[344396059,1733410240863,-500.0,0.00030136,7]
[344396060,1733410240873,-500.0,0.00030136,7]
[344396061,1733410240883,-500.0,0.00030136,7]
[344396062,1733410240893,-500.0,0.00030136,7]
[344396063,1733410240903,-426.61054173,0.00030136,7]
[344396064,1733410240914,-500.0,0.00030136,7]
[344396065,1733410240923,-500.0,0.00030136,7]
[344396066,1733410240933,-534.5671019,0.00030136,7]
[344396067,1733410240942,-556.86377719,0.00030136,7]
[344396068,1733410240951,-511.94050852,0.00030136,7]
[344396069,1733410240966,-493.3800761,0.00030136,7]
[344396070,1733410240976,-500.0,0.00030136,7]
[344396071,1733410240986,-500.0,0.00030136,7]
[344396072,1733410240996,-502.98407879,0.00030136,7]
[344396073,1733410241006,-550.92799918,0.00030136,7]
[344396074,1733410241015,-553.14,0.00030136,7]
[344396075,1733410241025,-500.0,0.00030136,7]
[344396076,1733410241034,-501.27563853,0.00030136,7]
[344396077,1733410241044,-506.55555807,0.00030136,7]
[344396078,1733410241053,-207.58562423,0.00030136,7]
[344396079,1733410241063,-527.52398213,0.00030136,7]
[344396080,1733410241072,-394.4,0.00030136,7]
[344396081,1733410241081,-500.0,0.00030136,7]
[344396082,1733410241091,-507.99954732,0.00030136,7]
[344396083,1733410241100,-266.18,0.00030136,7]
[344396084,1733410241110,-567.0370888,0.00030136,7]
[344396085,1733410241119,-500.0,0.00030136,7]
[344396086,1733410241129,-409.92855036,0.00030136,7]
[344396087,1733410241139,-634.53165361,0.00030136,7]
[344396088,1733410241149,-500.0,0.00030136,7]
[344396089,1733410241158,-500.0,0.00030136,7]
[344396090,1733410241168,-500.0,0.00030136,7]
[344396091,1733410241179,-500.0,0.00030136,7]
[344396092,1733410241189,-500.0,0.00030136,7]
[344396093,1733410241199,-500.0,0.00030136,7]
[344396094,1733410241209,-500.0,0.00030136,7]
[344396095,1733410241219,-500.0,0.00030136,7]
[344396096,1733410241228,-500.0,0.00030136,7]
[344396097,1733410241238,-507.23237359,0.00030136,7]
[344396098,1733410241247,-511.9712505,0.00030136,7]
[344396099,1733410241257,-500.0,0.00030136,7]
[344396100,1733410241267,-167.68987152,0.00030136,7]
[344396101,1733410241276,-506.82989933,0.00030136,7]
[344396102,1733410241286,-500.0,0.00030136,7]
[344396103,1733410241295,-500.0,0.00030136,7]
[344396104,1733410241304,-500.0,0.00030136,7]
[344396105,1733410241314,-500.0,0.00030136,7]
[344396106,1733410241324,-512.244189,0.00030136,7]
[344396107,1733410241333,-505.32572733,0.00030136,7]
[344396108,1733410241343,-506.17065024,0.00030136,7]
[344396109,1733410241352,-503.01473835,0.00030136,7]
[344396110,1733410241363,-67.65984587,0.00030136,7]
[344396141,1733410243352,-432.34015413,0.00030136,7]
[344396142,1733410243364,-502.73283702,0.00030136,7]
[344396143,1733410243380,-500.0,0.00030136,7]
[344396144,1733410243396,-500.0,0.00030136,7]
[344396145,1733410243406,-500.99169595,0.00030136,7]
[344396146,1733410243415,-505.01663218,0.00030136,7]
[344396147,1733410243426,-632.38758937,0.00030136,7]
[344396148,1733410243435,-508.49787315,0.00030136,7]
[344396149,1733410243445,-500.0,0.00030136,7]
[344396150,1733410243455,-500.0,0.00030136,7]
[344396151,1733410243467,-530.74,0.00030136,7]
[344396152,1733410243478,-508.60543267,0.00030136,7]
[344396153,1733410243487,-515.16311243,0.00030136,7]
[344396154,1733410243497,-433.52,0.00030241,7]
[344396155,1733410243507,-500.0,0.00030241,7]
[344396156,1733410243517,-622.71381486,0.00030242,7]
[344396157,1733410243526,-500.0,0.00030242,7]
[344396158,1733410243536,-154.34,0.000303,31]
[344396159,1733410243546,-154.34,0.000303,31]
[344396160,1733410243557,-154.34,0.000303,31]
[344396161,1733410243568,-154.34,0.000303,31]
[344396162,1733410243578,-154.34,0.000303,31]
[344396164,1733410243588,-154.34,0.000303,31]
[344396166,1733410243597,-500.0,0.00030406,7]
[344396168,1733410243607,-249.51628282,0.00030406,7]
[344396169,1733410243617,-500.0,0.00030406,2]
[344396170,1733410243627,-500.0,0.00030472,7]
[344396171,1733410243637,-504.19878046,0.00030473,5]
[344396172,1733410243647,-500.0,0.00030473,5]
[344396173,1733410243657,-154.8167815,0.00030473,5]
[344396174,1733410243667,-501.64041528,0.00030473,5]
[344396175,1733410243676,-500.0,0.00030473,5]
[344396176,1733410243686,-303.69241913,0.00030473,2]
[344396177,1733410243696,-500.0,0.00030473,5]
[344396178,1733410243706,-500.0,0.00030473,5]
[344396179,1733410243718,-162.61874154,0.00030473,5]
[344396180,1733410243727,-163.27750807,0.00030473,5]
[344396181,1733410243737,-153.93725869,0.00030473,5]
[344396182,1733410243747,-163.63438446,0.00030473,5]
[344396183,1733410243757,-500.0,0.00030473,2]
[344396184,1733410243766,-160.15859866,0.00030473,5]
[344396185,1733410243777,-500.0,0.00030473,5]
[344396186,1733410243786,-176.63590491,0.00030473,5]
[344396187,1733410243798,-500.0,0.00030473,5]
[344396188,1733410243808,-500.21049203,0.00030473,5]
[344396189,1733410243818,-512.45898041,0.00030499,2]
[344396190,1733410243828,-170.30691999,0.00030499,2]
[344396191,1733410243839,-176.86884833,0.00030499,2]
[344396192,1733410243848,-207.00191022,0.00030499,2]
[344396193,1733410243857,-1000.0,0.00030499,120]
[344396194,1733410243867,-500.0,0.00030499,7]
[344396195,1733410243877,-189.42,0.00030499,7]
[344396196,1733410243887,-534.56,0.00030499,7]
[344396197,1733410243896,-300097.2397458,0.000305,15]
[344396198,1733410243905,-154.34,0.000305,31]